lending/lending_fUSD_20241005
["ID","MTS","AMOUNT","RATE_DAILY","PERIOD"]
[339905254,1728147157515,-500.0,0.00041643,120]
[339905255,1728147157525,-1207.12,0.00041643,120]
[339905256,1728147157534,-500.0,0.00041643,120]
[339905257,1728147157544,-621.54,0.00041643,120]
[339905258,1728147157553,-1418.21,0.00041643,120]
[339905259,1728147157563,-500.0,0.00041643,120]
[339905260,1728147157572,-500.0,0.00041643,120]
[339905261,1728147157582,-1713.6,0.00041643,120]
[339905262,1728147157591,-596.62,0.00041643,120]
[339905263,1728147157601,-500.0,0.00041643,120]
[339905264,1728147157611,-500.0,0.00041643,120]
[339905265,1728147157620,-1763.97,0.00041643,120]
[339905266,1728147157630,-500.0,0.00041643,120]
[339905267,1728147157640,-520.32,0.00041643,120]
[339905268,1728147157649,-500.0,0.00041643,120]
[339905269,1728147157659,-500.0,0.00041643,120]
[339905270,1728147157668,-500.0,0.00041643,120]
[339905271,1728147157677,-500.0,0.00041643,120]
[339905272,1728147157687,-1374.93,0.00041643,120]
[339905273,1728147157697,-814.88,0.00041643,120]
[339905274,1728147157706,-828.2,0.00041643,120]
[339905275,1728147157716,-500.0,0.00041643,120]
[339905276,1728147157726,-1238.46,0.00041643,120]
[339905277,1728147157736,-500.0,0.00041643,120]
[339905278,1728147157745,-904.62,0.00041643,120]
[339905279,1728147157755,-500.0,0.00041643,120]
[339905280,1728147157764,-629.14,0.00041643,120]
[339905281,1728147157774,-500.0,0.00041643,120]
[339905282,1728147157784,-1015.81,0.00041643,120]
[339905283,1728147157794,-500.0,0.00041643,120]
[339905284,1728147157804,-934.77,0.00041643,120]
[339905285,1728147157813,-500.0,0.00041643,7]
[339905286,1728147157823,-530.59882411,0.00041643,120]
[339905287,1728147157833,-1120.82,0.00041643,120]
[339905288,1728147157842,-790.26,0.00041643,120]
[339905289,1728147157852,-803.58,0.00041643,120]
[339905290,1728147157862,-500.0,0.00041643,120]
[339905291,1728147157872,-617.73,0.00041643,120]
[339905292,1728147157882,-500.0,0.00041643,120]
[339905293,1728147157891,-500.0,0.00041643,120]
[339905294,1728147157901,-500.0,0.00041643,120]
[339905295,1728147157911,-500.0,0.00041643,120]
[339905296,1728147157920,-816.66,0.00041643,120]
[339905297,1728147157930,-1440.54,0.00041643,120]
[339905298,1728147157940,-499.37308401,0.00041643,2]
[339905299,1728147157949,-1168.27,0.00041643,120]
[339905300,1728147157959,-684.57,0.00041643,120]
[339905301,1728147157969,-500.0,0.00041643,120]
[339905302,1728147157978,-500.0,0.00041643,120]
[339905303,1728147157988,-1163.33,0.00041643,120]
[339905304,1728147157997,-886.94,0.00041643,120]
[339905305,1728147158006,-500.0,0.00041643,120]
[339905306,1728147158016,-790.06,0.00041643,120]
[339905307,1728147158026,-500.0,0.00041643,120]
[339905308,1728147158037,-1783.85,0.00041643,120]
[339905309,1728147158046,-1108.4,0.00041643,120]
[339905310,1728147158056,-500.0,0.00041643,120]
[339905311,1728147158065,-239.43283749,0.00041644,30]
[339905312,1728147158074,-331.100519,0.00041798,119]
[339905313,1728147158084,-239.43283749,0.00041836,30]
[339905314,1728147158093,-1000.0,0.00041843,120]
[339905315,1728147158102,-443.48370958,0.00041854,120]
[339905316,1728147158112,-1404.31028826,0.00041854,120]
[339905317,1728147158121,-157.5549,0.00041888,30]
[339905318,1728147158130,-152.0,0.00041931,9]
[339905319,1728147158139,-50000.0,0.00042,32]
[339905320,1728147158149,-50000.0,0.00042,42]
[339905321,1728147158158,-422.89806927,0.00042,120]
[339905322,1728147158168,-12411.09475687,0.00042,2]
[339905323,1728147158177,-8821.70677974,0.00042,2]
[339905324,1728147158187,-570.0,0.00042,3]
[339905325,1728147158197,-265.0666161,0.00042,120]
[339905326,1728147158206,-1000.0,0.00042,120]
[339905327,1728147158216,-749.13191166,0.00042,120]
[339905328,1728147158226,-9601.50952505,0.00042,30]
[339905329,1728147158236,-754.0,0.00042,4]
[339905330,1728147158245,-19999.999999,0.00042,60]
[339905331,1728147158255,-1694.83705072,0.00042,45]
[339905332,1728147158266,-240.78807006,0.00042,45]
[339905333,1728147158276,-250.0,0.00042,30]
[339905334,1728147158286,-799.0,0.00042011,30]
[339905335,1728147158296,-239.43283749,0.00042027,30]
[339905336,1728147158306,-668.66,0.00042054,120]
[339905337,1728147158315,-1684.72,0.00042054,120]
[339905338,1728147158325,-500.0,0.00042054,120]
[339905339,1728147158335,-500.0,0.00042054,120]
[339905340,1728147158344,-500.0,0.00042054,120]
[339905341,1728147158354,-500.0,0.00042054,120]
[339905342,1728147158363,-500.0,0.00042054,120]
[339905343,1728147158373,-500.0,0.00042054,120]
[339905344,1728147158383,-500.0,0.00042054,120]
[339905345,1728147158392,-500.0,0.00042054,120]
[339905346,1728147158402,-500.0,0.00042054,120]
[339905347,1728147158412,-500.0,0.00042054,120]
[339905348,1728147158423,-500.0,0.00042054,120]
[339905349,1728147158433,-500.0,0.00042054,120]
[339905350,1728147158443,-150.0,0.00042054,120]
[339905351,1728147158453,-500.0,0.00042054,120]
[339905352,1728147158463,-1155.52,0.00042054,120]
[339905353,1728147158472,-1004.11,0.00042054,120]
[339905354,1728147158482,-869.62,0.00042054,120]
[339905355,1728147158491,-500.0,0.00042054,120]
[339905356,1728147158501,-500.0,0.00042054,120]
[339905357,1728147158512,-577.41,0.00042054,120]
[339905358,1728147158522,-1420.73,0.00042054,120]
[339905359,1728147158532,-500.0,0.00042054,120]
[339905360,1728147158541,-547.3,0.00042054,120]
[339905361,1728147158551,-500.0,0.00042054,120]
[339905362,1728147158562,-548.25,0.00042054,120]
[339905363,1728147158572,-500.0,0.00042054,120]
[339905364,1728147158582,-500.0,0.00042054,120]
[339905365,1728147158591,-500.0,0.00042054,120]
[339905366,1728147158601,-634.58,0.00042054,120]
[339905367,1728147158611,-500.0,0.00042054,120]
[339905368,1728147158620,-593.12,0.00042054,120]
[339905369,1728147158630,-500.0,0.00042054,120]
[339905370,1728147158640,-529.51,0.00042054,120]
[339905371,1728147158650,-1227.07,0.00042054,120]
[339905372,1728147158661,-518.44,0.00042054,120]
[339905373,1728147158671,-500.0,0.00042054,120]
[339905374,1728147158941,-907.64,0.00042054,120]
[339905375,1728147158964,-500.0,0.00042054,120]
[339905376,1728147158974,-500.0,0.00042054,120]
[339905377,1728147158983,-500.0,0.00042054,120]
[339905378,1728147158993,-500.0,0.00042054,120]
[339905379,1728147159003,-500.0,0.00042054,120]
[339905380,1728147159013,-780.76,0.00042054,120]
[339905381,1728147159023,-500.0,0.00042054,120]
[339905382,1728147159032,-500.0,0.00042054,120]
[339905383,1728147159042,-1092.02,0.00042054,120]
[339905384,1728147159052,-1147.66,0.00042054,120]
[339905385,1728147159062,-500.0,0.00042054,7]
[339905386,1728147159071,-500.78828504,0.00042054,120]
[339905387,1728147159081,-500.0,0.00042054,120]
[339905388,1728147159091,-500.0,0.00042054,120]
[339905389,1728147159101,-500.0,0.00042054,120]
[339905390,1728147159110,-500.0,0.00042054,120]
[339905391,1728147159120,-605.99,0.00042054,120]
[339905392,1728147159129,-500.0,0.00042054,120]
[339905393,1728147159139,-500.0,0.00042054,120]
[339905394,1728147159149,-959.8,0.00042054,120]
[339905395,1728147159159,-597.47,0.00042054,120]
[339905396,1728147159169,-500.0,0.00042054,120]
[339905397,1728147159178,-500.0,0.00042054,120]
[339905398,1728147159188,-500.0,0.00042054,120]
[339905399,1728147159198,-200.0,0.00042054,7]
[339905400,1728147159207,-287.74273558,0.00042054,120]
[339905401,1728147159216,-500.0,0.00042054,120]
[339905402,1728147159226,-500.0,0.00042054,120]
[339905403,1728147159236,-500.0,0.00042054,120]
[339905404,1728147159245,-500.0,0.00042054,120]
[339905405,1728147159254,-1254.87,0.00042054,120]
[339905406,1728147159264,-500.0,0.00042054,120]
[339905407,1728147159275,-500.0,0.00042054,120]
[339905408,1728147159284,-500.0,0.00042054,120]
[339905409,1728147159293,-1340.11,0.00042054,120]
[339905410,1728147159305,-500.0,0.00042054,120]
[339905411,1728147159315,-1185.33,0.00042054,120]
[339905412,1728147159325,-500.0,0.00042054,120]
[339905413,1728147159335,-500.0,0.00042054,120]
[339905414,1728147159345,-1060.42,0.00042054,120]
[339905415,1728147159355,-500.0,0.00042054,120]
[339905416,1728147159364,-1130.0,0.00042054,120]
[339905417,1728147159374,-952.13,0.00042054,120]
[339905418,1728147159384,-500.0,0.00042054,120]
[339905419,1728147159393,-865.66,0.00042054,120]
[339905420,1728147159404,-996.76,0.00042054,120]
[339905421,1728147159416,-1128.68,0.00042054,120]
[339905422,1728147159426,-585.41,0.00042054,120]
[339905423,1728147159436,-1208.3,0.00042054,120]
[339905424,1728147159446,-500.0,0.00042054,120]
[339905425,1728147159455,-500.0,0.00042054,120]
[339905426,1728147159466,-999.01,0.00042054,120]
[339905427,1728147159476,-500.0,0.00042054,120]
[339905428,1728147159486,-508.91,0.00042054,120]
[339905429,1728147159495,-500.0,0.00042054,120]
[339905430,1728147159506,-868.76,0.00042054,120]
[339905431,1728147159516,-1096.8,0.00042054,120]
[339905432,1728147159526,-315.40728373,0.00042054,120]
[339905433,1728147159536,-613.51,0.00042054,120]
[339905434,1728147159546,-930.7,0.00042054,120]
[339905435,1728147159555,-500.0,0.00042054,120]
[339905436,1728147159564,-1272.74,0.00042054,120]
[339905437,1728147159574,-646.65,0.00042054,120]
[339905438,1728147159583,-504.49,0.00042054,120]
[339905439,1728147159592,-845.63,0.00042054,120]
[339905440,1728147159602,-937.71,0.00042054,120]
[339905441,1728147159611,-500.0,0.00042054,120]
[339905442,1728147159620,-1381.8,0.00042054,120]
[339905443,1728147159630,-500.0,0.00042054,120]
[339905444,1728147159639,-500.0,0.00042054,120]
[339905445,1728147159650,-500.0,0.00042054,120]
[339905446,1728147159659,-500.0,0.00042054,120]
[339905447,1728147159668,-741.0,0.00042054,120]
[339905448,1728147159678,-500.0,0.00042054,120]
[339905449,1728147159687,-982.24,0.00042054,120]
[339905450,1728147159697,-500.0,0.00042054,120]
[339905451,1728147159706,-1105.62,0.00042054,120]
[339905452,1728147159716,-500.0,0.00042054,120]
[339905453,1728147159725,-877.47,0.00042054,120]
[339905454,1728147159736,-994.36,0.00042054,120]
[339905455,1728147159745,-500.0,0.00042054,120]
[339905456,1728147159756,-1035.51,0.00042054,120]
[339905457,1728147159766,-500.0,0.00042054,120]
[339905458,1728147159776,-500.0,0.00042054,120]
[339905459,1728147159785,-989.87,0.00042054,120]
[339905460,1728147159795,-500.0,0.00042054,120]
[339905461,1728147159804,-500.0,0.00042054,120]
[339905462,1728147159814,-871.55,0.00042054,120]
[339905463,1728147159824,-1333.03,0.00042054,120]
[339905464,1728147159833,-925.19,0.00042054,120]
[339905465,1728147159843,-500.0,0.00042054,120]
[339905466,1728147159853,-500.0,0.00042054,120]
[339905467,1728147159862,-889.77,0.00042054,120]
[339905468,1728147159872,-1502.02,0.00042054,120]
[339905469,1728147159881,-600.24,0.00042054,120]
[339905470,1728147159891,-717.54,0.00042054,120]
[339905471,1728147159901,-963.18,0.00042054,120]
[339905472,1728147159910,-551.7,0.00042054,120]
[339905473,1728147159920,-1246.88,0.00042054,120]
[339905474,1728147159930,-584.17,0.00042054,120]
[339905475,1728147159939,-518.72,0.00042054,120]
[339905476,1728147159948,-500.0,0.00042054,120]
[339905477,1728147159957,-500.0,0.00042054,120]
[339905478,1728147159967,-1465.78,0.00042054,120]
[339905479,1728147159977,-500.0,0.00042054,120]
[339905480,1728147159986,-1472.61,0.00042054,120]
[339905481,1728147159995,-290.57530627,0.00042054,120]
[339905482,1728147160005,-848.55,0.00042054,120]
[339905483,1728147160014,-500.0,0.00042054,120]
[339905484,1728147160025,-500.0,0.00042054,120]
[339905485,1728147160037,-779.41,0.00042054,120]
[339905486,1728147160046,-500.0,0.00042054,120]
[339905487,1728147160055,-777.28,0.00042054,120]
[339905488,1728147160064,-500.0,0.00042054,120]
[339905489,1728147160073,-500.0,0.00042054,120]
[339905490,1728147160083,-1683.21,0.00042054,120]
[339905491,1728147160092,-1078.6,0.00042054,120]
[339905492,1728147160102,-1725.49,0.00042054,120]
[339905493,1728147160111,-587.6,0.00042054,120]
[339905494,1728147160120,-659.83,0.00042054,120]
[339905495,1728147160130,-600.74,0.00042054,120]
[339905496,1728147160142,-706.43,0.00042054,120]
[339905497,1728147160152,-1054.81,0.00042054,120]
[339905498,1728147160162,-500.0,0.00042054,120]
[339905499,1728147160171,-500.0,0.00042054,120]
[339905500,1728147160180,-287.77993182,0.00042054,120]
[339905501,1728147160189,-1280.81,0.00042054,120]
[339905502,1728147160198,-500.0,0.00042054,120]
[339905503,1728147160208,-1363.15,0.00042054,120]
[339905504,1728147160217,-500.0,0.00042054,120]
[339905505,1728147160227,-500.0,0.00042054,120]
[339905506,1728147160236,-500.0,0.00042054,120]
[339905507,1728147160245,-500.0,0.00042054,120]
[339905508,1728147160254,-905.57,0.00042054,120]
[339905509,1728147160263,-500.0,0.00042054,120]
[339905510,1728147160274,-1235.27,0.00042054,120]
[339905511,1728147160284,-1284.12,0.00042054,120]
[339905512,1728147160293,-500.0,0.00042054,120]
[339905513,1728147160304,-637.05,0.00042054,120]
[339905514,1728147160314,-500.0,0.00042054,120]
[339905515,1728147160323,-1285.68,0.00042054,120]
[339905516,1728147160333,-503.25,0.00042054,120]
[339905517,1728147160343,-500.0,0.00042054,120]
[339905518,1728147160352,-500.0,0.00042054,120]
[339905519,1728147160362,-938.91,0.00042054,120]
[339905520,1728147160371,-500.0,0.00042054,120]
[339905521,1728147160381,-1214.24,0.00042054,120]
[339905522,1728147160391,-669.13,0.00042054,120]
[339905523,1728147160400,-950.76,0.00042054,120]
[339905524,1728147160409,-1555.77,0.00042054,120]
[339905525,1728147160423,-500.0,0.00042054,120]
[339905526,1728147160433,-1046.87,0.00042054,120]
[339905527,1728147160443,-500.0,0.00042054,120]
[339905528,1728147160453,-1000.0,0.00042054,120]
[339905529,1728147160462,-766.5,0.00042054,120]
[339905530,1728147160472,-1076.33,0.00042054,120]
[339905531,1728147160481,-500.0,0.00042054,120]
[339905532,1728147160491,-320.08,0.00042054,120]
[339905533,1728147160501,-500.0,0.00042054,120]
[339905534,1728147160511,-773.6,0.00042054,120]
[339905535,1728147160521,-500.0,0.00042054,120]
[339905536,1728147160531,-956.46,0.00042054,120]
[339905537,1728147160541,-500.0,0.00042054,120]
[339905538,1728147160549,-500.0,0.00042054,120]
[339905539,1728147160558,-500.0,0.00042054,120]
[339905540,1728147160568,-505.33491658,0.00042054,120]
[339905541,1728147160577,-1442.35,0.00042054,120]
[339905542,1728147160587,-1211.84,0.00042054,120]
[339905543,1728147160596,-500.0,0.00042054,120]
[339905544,1728147160606,-658.69,0.00042054,120]
[339905545,1728147160615,-1361.72,0.00042054,24]
[339905546,1728147160625,-1120.5,0.00042054,120]
[339905547,1728147160634,-500.0,0.00042054,120]
[339905548,1728147160644,-500.0,0.00042054,120]
[339905549,1728147160655,-500.0,0.00042054,120]
[339905550,1728147160664,-1128.3,0.00042054,120]
[339905551,1728147160675,-498.99900072,0.00042054,120]
[339905552,1728147160684,-500.0,0.00042054,120]
[339905553,1728147160693,-500.0,0.00042054,120]
[339905554,1728147160705,-428.4346359,0.00042054,120]
[339905555,1728147160715,-627.25,0.00042054,120]
[339905556,1728147160725,-723.77,0.00042054,120]
[339905557,1728147160735,-500.0,0.00042054,120]
[339905558,1728147160744,-1143.9,0.00042054,120]
[339905559,1728147160755,-502.75,0.00042054,120]
[339905560,1728147160765,-500.0,0.00042054,120]
[339905561,1728147160775,-1054.07,0.00042054,120]
[339905562,1728147160784,-1458.38,0.00042054,120]
[339905563,1728147160794,-680.05,0.00042054,120]
[339905564,1728147160803,-2308.66,0.00042054,120]
[339905565,1728147160812,-526.17,0.00042054,120]
[339905566,1728147160822,-958.76,0.00042054,120]
[339905567,1728147160832,-500.0,0.00042054,120]
[339905568,1728147160841,-521.35,0.00042054,120]
[339905569,1728147160851,-500.0,0.00042054,120]
[339905570,1728147160861,-772.75,0.00042054,120]
[339905571,1728147160871,-957.22,0.00042054,120]
[339905572,1728147160880,-1182.56,0.00042054,120]
[339905573,1728147160890,-658.49,0.00042054,120]
[339905574,1728147160900,-500.0,0.00042054,120]
[339905575,1728147160909,-500.0,0.00042054,120]
[339905576,1728147160919,-500.0,0.00042054,120]
[339905577,1728147160928,-500.0,0.00042054,120]
[339905578,1728147160938,-764.47,0.00042054,120]
[339905579,1728147160947,-500.0,0.00042054,120]
[339905580,1728147160956,-1230.05,0.00042054,120]
[339905581,1728147160965,-500.0,0.00042054,120]
[339905582,1728147160975,-500.0,0.00042054,120]
[339905583,1728147160984,-872.43,0.00042054,120]
[339905584,1728147160993,-500.0,0.00042054,120]
[339905585,1728147161002,-611.65,0.00042054,120]
[339905586,1728147161012,-503.60695537,0.00042054,120]
[339905587,1728147161021,-842.7,0.00042054,120]
[339905588,1728147161031,-500.0,0.00042054,120]
[339905589,1728147161040,-500.0,0.00042054,120]
[339905590,1728147161050,-821.45,0.00042054,120]
[339905591,1728147161059,-1020.54,0.00042054,120]
[339905592,1728147161069,-500.0,0.00042054,120]
[339905593,1728147161079,-508.95,0.00042054,120]
[339905594,1728147161088,-500.0,0.00042054,120]
[339905595,1728147161098,-500.0,0.00042054,120]
[339905596,1728147161107,-500.0,0.00042054,120]
[339905597,1728147161117,-500.0,0.00042054,120]
[339905598,1728147161127,-1095.31,0.00042054,120]
[339905599,1728147161137,-500.0,0.00042054,120]
[339905600,1728147161146,-1129.38,0.00042054,120]
[339905601,1728147161155,-500.0,0.00042054,120]
[339905602,1728147161165,-500.0,0.00042054,120]
[339905603,1728147161174,-500.0,0.00042054,120]
[339905604,1728147161183,-500.0,0.00042054,120]
[339905605,1728147161192,-500.0,0.00042054,120]
[339905606,1728147161202,-500.0,0.00042054,120]
[339905607,1728147161211,-794.7,0.00042054,120]
[339905608,1728147161220,-500.0,0.00042054,120]
[339905609,1728147161230,-830.85,0.00042054,120]
[339905610,1728147161239,-500.0,0.00042054,120]
[339905611,1728147161248,-1027.89,0.00042054,120]
[339905612,1728147161257,-500.0,0.00042054,120]
[339905613,1728147161266,-500.0,0.00042054,120]
[339905614,1728147161276,-1487.21,0.00042054,120]
[339905615,1728147161286,-1056.64,0.00042054,120]
[339905616,1728147161297,-500.0,0.00042054,120]
[339905617,1728147161307,-500.0,0.00042054,120]
[339905618,1728147161317,-500.0,0.00042054,120]
[339905619,1728147161326,-500.0,0.00042054,120]
[339905620,1728147161335,-966.23,0.00042054,120]
[339905621,1728147161344,-371.66,0.00042054,120]
[339905622,1728147161353,-1402.9,0.00042054,120]
[339905623,1728147161362,-155.637596,0.00042054,120]
[339905624,1728147161371,-500.0,0.00042054,120]
[339905625,1728147161380,-150.341723,0.00042054,120]
[339905626,1728147161391,-500.0,0.00042054,120]
[339905627,1728147161402,-500.0,0.00042054,120]
[339905628,1728147161413,-500.0,0.00042054,120]
[339905629,1728147161426,-605.78,0.00042054,120]
[339905630,1728147161436,-500.0,0.00042054,120]
[339905631,1728147161447,-534.83,0.00042054,120]
[339905632,1728147161458,-1181.15,0.00042054,120]
[339905633,1728147161467,-500.0,0.00042054,120]
[339905634,1728147161477,-540.58,0.00042054,120]
[339905635,1728147161487,-567.65,0.00042054,120]
[339905636,1728147161498,-602.72,0.00042054,120]
[339905637,1728147161508,-942.98,0.00042054,120]
[339905638,1728147161517,-500.0,0.00042054,120]
[339905639,1728147161528,-500.0,0.00042054,120]
[339905640,1728147161537,-739.94,0.00042054,120]
[339905641,1728147161547,-500.0,0.00042054,120]
[339905642,1728147161557,-1122.04,0.00042054,120]
[339905643,1728147161567,-500.0,0.00042054,120]
[339905644,1728147161576,-960.92,0.00042054,120]
[339905645,1728147161586,-1176.15,0.00042054,120]
[339905646,1728147161595,-500.0,0.00042054,120]
[339905647,1728147161604,-1087.37,0.00042054,120]
[339905648,1728147161613,-500.0,0.00042054,120]
[339905649,1728147161622,-548.14,0.00042054,120]
[339905650,1728147161632,-500.0,0.00042054,120]
[339905651,1728147161642,-500.0,0.00042054,120]
[339905652,1728147161652,-255.38607,0.00042054,120]
[339905653,1728147161661,-808.84,0.00042054,120]
[339905654,1728147161671,-894.57,0.00042054,120]
[339905655,1728147161681,-500.0,0.00042054,120]
[339905656,1728147161691,-500.0,0.00042054,120]
[339905657,1728147161701,-365.66433501,0.00042054,120]
[339905658,1728147161711,-744.22,0.00042054,120]
[339905659,1728147161720,-500.0,0.00042054,120]
[339905660,1728147161729,-1106.31,0.00042054,120]
[339905661,1728147161739,-795.88,0.00042054,120]
[339905662,1728147161749,-500.0,0.00042054,120]
[339905663,1728147161759,-719.91,0.00042054,120]
[339905664,1728147161768,-500.0,0.00042054,120]
[339905665,1728147161778,-912.73,0.00042054,120]
[339905666,1728147161788,-519.73,0.00042054,120]
[339905667,1728147161797,-1177.68,0.00042054,120]
[339905668,1728147161806,-780.08,0.00042054,14]
[339905669,1728147161815,-750.93,0.00042054,120]
[339905670,1728147161825,-789.28,0.00042054,120]
[339905671,1728147161834,-669.75,0.00042054,120]
[339905672,1728147161844,-704.169704,0.00042054,120]
[339905673,1728147161853,-1092.22,0.00042054,120]
[339905674,1728147161862,-535.24,0.00042054,120]
[339905675,1728147161872,-1378.36,0.00042054,120]
[339905676,1728147161881,-745.48,0.00042054,120]
[339905677,1728147161891,-500.0,0.00042054,120]
[339905678,1728147161900,-500.0,0.00042054,120]
[339905679,1728147161910,-500.0,0.00042054,120]
[339905680,1728147161919,-1306.31,0.00042054,120]
[339905681,1728147161929,-500.0,0.00042054,120]
[339905682,1728147161938,-524.51,0.00042054,120]
[339905683,1728147161947,-500.0,0.00042054,120]
[339905684,1728147161957,-513.93,0.00042054,120]
[339905685,1728147161966,-500.0,0.00042054,120]
[339905686,1728147161976,-645.77,0.00042054,120]
[339905687,1728147161985,-833.87,0.00042054,120]
[339905688,1728147161994,-500.0,0.00042054,120]
[339905689,1728147162004,-1307.93,0.00042054,120]
[339905690,1728147162013,-500.0,0.00042054,120]
[339905691,1728147162022,-1199.16,0.00042054,120]
[339905692,1728147162031,-500.0,0.00042054,120]
[339905693,1728147162040,-500.0,0.00042054,120]
[339905694,1728147162049,-500.0,0.00042054,120]
[339905695,1728147162058,-500.0,0.00042054,120]
[339905696,1728147162067,-985.84,0.00042054,120]
[339905697,1728147162077,-500.0,0.00042054,120]
[339905698,1728147162086,-1049.3,0.00042054,120]
[339905699,1728147162095,-1294.19,0.00042054,120]
[339905700,1728147162104,-500.0,0.00042054,120]
[339905701,1728147162113,-793.27,0.00042054,120]
[339905702,1728147162122,-500.0,0.00042054,120]
[339905703,1728147162132,-500.0,0.00042054,120]
[339905704,1728147162142,-500.0,0.00042054,120]
[339905705,1728147162155,-500.0,0.00042054,120]
[339905706,1728147162164,-2888.1,0.00042054,120]
[339905707,1728147162173,-687.14,0.00042054,120]
[339905708,1728147162185,-500.0,0.00042054,120]
[339905709,1728147162195,-989.98,0.00042054,120]
[339905710,1728147162204,-500.0,0.00042054,120]
[339905711,1728147162217,-1432.95,0.00042054,120]
[339905712,1728147162227,-550.68,0.00042054,120]
[339905713,1728147162238,-724.21,0.00042054,120]
[339905714,1728147162247,-543.28,0.00042054,120]
[339905715,1728147162256,-500.0,0.00042054,120]
[339905716,1728147162266,-753.39,0.00042054,120]
[339905717,1728147162275,-807.23,0.00042054,120]
[339905718,1728147162285,-500.0,0.00042054,120]
[339905719,1728147162294,-500.0,0.00042054,120]
[339905720,1728147162303,-708.64,0.00042054,120]
[339905721,1728147162313,-562.5,0.00042054,120]
[339905722,1728147162322,-500.0,0.00042054,120]
[339905723,1728147162332,-430.4600541,0.00042054,120]
[339905724,1728147162341,-500.0,0.00042054,120]
[339905725,1728147162351,-500.0,0.00042054,120]
[339905726,1728147162361,-687.72,0.00042054,120]
[339905727,1728147162370,-1195.82,0.00042054,120]
[339905728,1728147162380,-905.32,0.00042054,7]
[339905729,1728147162389,-968.05,0.00042054,120]
[339905730,1728147162399,-1289.36,0.00042054,120]
[339905731,1728147162409,-1417.19,0.00042054,120]
[339905732,1728147162420,-763.68,0.00042054,120]
[339905733,1728147162432,-500.0,0.00042054,120]
[339905734,1728147162444,-244.0720085,0.00042054,120]
[339905735,1728147162456,-1687.35,0.00042054,120]
[339905736,1728147162469,-888.0,0.00042054,120]
[339905737,1728147162480,-785.36,0.00042054,120]
[339905738,1728147162490,-500.0,0.00042054,120]
[339905739,1728147162500,-500.0,0.00042054,120]
[339905740,1728147162511,-1179.64,0.00042054,120]
[339905741,1728147162523,-582.36,0.00042054,120]
[339905742,1728147162535,-500.0,0.00042054,120]
[339905743,1728147162546,-643.53,0.00042054,120]
[339905744,1728147162557,-1536.92,0.00042054,120]
[339905745,1728147162570,-1213.33,0.00042054,120]
[339905746,1728147162582,-533.33,0.00042054,120]
[339905747,1728147162594,-711.86,0.00042054,120]
[339905748,1728147162606,-500.0,0.00042054,120]
[339905749,1728147162617,-1142.18,0.00042054,120]
[339905750,1728147162630,-786.32,0.00042054,120]
[339905751,1728147162642,-1479.11,0.00042054,120]
[339905752,1728147162654,-500.0,0.00042054,120]
[339905753,1728147162665,-500.0,0.00042054,120]